fUST/lending_fUST_20240826
["ID","MTS","AMOUNT","RATE_DAILY","PERIOD"]
[335959168,1724643052060,-500.0,0.00012655,2]
[335959169,1724643052072,-218.0644595,0.00012655,2]
[335959170,1724643052081,-751.39,0.00012655,2]
[335959171,1724643052090,-500.0,0.00012655,2]
[335959172,1724643052099,-500.0,0.00012655,2]
[335959173,1724643052109,-509.44,0.00012655,2]
[335959174,1724643052120,-500.0,0.00012655,2]
[335959175,1724643052129,-500.0,0.00012655,2]
[335959176,1724643052140,-500.0,0.00012655,2]
[335959177,1724643052151,-658.78,0.00012655,2]
[335959178,1724643052161,-500.0,0.00012655,2]
[335959179,1724643052170,-500.0,0.00012655,2]
[335959180,1724643052180,-500.0,0.00012655,2]
[335959181,1724643052189,-500.0,0.00012655,2]
[335959182,1724643052198,-500.0,0.00012655,2]
[335959183,1724643052207,-551.14639096,0.00012655,2]
[335959184,1724643052216,-528.42,0.00012655,2]
[335959185,1724643052225,-891.36,0.00012656,2]
[335959186,1724643052235,-648.56,0.00012656,2]
[335959187,1724643052244,-1098.49,0.00012656,2]
[335959188,1724643052255,-535.41,0.00012656,2]
[335959189,1724643052264,-779.3,0.00012656,2]
[335959190,1724643052273,-500.0,0.00012656,2]
[335959191,1724643052283,-500.0,0.00012656,2]
[335959192,1724643052292,-742.66,0.00012656,2]
[335959193,1724643052301,-500.0,0.00012656,2]
[335959194,1724643052311,-669.56,0.00012656,2]
[335959195,1724643052323,-500.0,0.00012656,2]
[335959196,1724643052332,-500.0,0.00012656,2]
[335959197,1724643052342,-720.35,0.00012656,2]
[335959198,1724643052351,-500.0,0.00012656,2]
[335959199,1724643052361,-536.45,0.00012656,2]
[335959200,1724643052370,-500.0,0.00012656,2]
[335959201,1724643052379,-500.0,0.00012656,2]
[335959202,1724643052390,-869.53,0.00012656,2]
[335959203,1724643052400,-500.0,0.00012656,2]
[335959204,1724643052409,-1146.52,0.00012656,2]
[335959205,1724643052419,-658.97,0.00012656,2]
[335959206,1724643052427,-500.0,0.00012656,2]
[335959207,1724643052436,-538.19,0.00012656,2]
[335959208,1724643052445,-618.02126839,0.00012656,2]
[335959209,1724643052454,-1086.13,0.00012656,2]
[335959210,1724643052463,-500.0,0.00012656,2]
[335959211,1724643052473,-1073.17,0.00012656,2]
[335959212,1724643052482,-500.0,0.00012656,2]
[335959213,1724643052491,-500.0,0.00012656,2]
[335959214,1724643052500,-950.45,0.00012656,2]
[335959215,1724643052509,-705.23,0.00012656,2]
[335959216,1724643052519,-526.97,0.00012656,2]
[335959217,1724643052528,-500.0,0.00012656,2]
[335959218,1724643052537,-1043.49,0.00012656,2]
[335959219,1724643052546,-500.0,0.00012656,2]
[335959220,1724643052556,-552.7,0.00012656,2]
[335959221,1724643052566,-1078.34,0.00012656,2]
[335959222,1724643052576,-844.21,0.00012656,2]
[335959223,1724643052585,-897.75,0.00012656,2]
[335959224,1724643052595,-500.0,0.00012656,2]
[335959225,1724643052604,-568.07,0.00012656,2]
[335959226,1724643052614,-500.0,0.00012656,2]
[335959227,1724643052623,-500.0,0.00012656,2]
[335959228,1724643052632,-240.03462011,0.00012656,2]
[335959229,1724643052641,-500.0,0.00012656,2]
[335959230,1724643052650,-845.0,0.00012656,2]
[335959231,1724643052659,-1253.91,0.00012656,2]
[335959232,1724643052668,-642.79,0.00012656,2]
[335959233,1724643052678,-1093.67,0.00012656,2]
[335959234,1724643052687,-856.53,0.00012656,2]
[335959235,1724643052699,-1079.05,0.00012656,2]
[335959236,1724643052709,-527.03,0.00012656,2]
[335959237,1724643052719,-817.6,0.00012656,2]
[335959238,1724643052731,-729.71,0.00012656,2]
[335959239,1724643052742,-561.47,0.00012656,2]
[335959240,1724643052752,-571.31,0.00012656,2]
[335959241,1724643052762,-681.91,0.00012656,2]
[335959242,1724643052771,-837.31,0.00012656,2]
[335959243,1724643052781,-1082.59,0.00012656,2]
[335959244,1724643052790,-529.28,0.00012656,2]
[335959245,1724643052799,-500.0,0.00012666,2]
[335959246,1724643052809,-404.72731861,0.00012689,2]
[335959247,1724643052820,-500.0,0.00012713,2]
[335959248,1724643052830,-543.13,0.00012713,2]
[335959249,1724643052839,-642.75,0.00012713,2]
[335959250,1724643052849,-500.0,0.00012713,2]
[335959251,1724643052859,-500.0,0.00012713,2]
[335959252,1724643052869,-500.0,0.00012713,2]
[335959253,1724643052878,-565.98,0.00012713,2]
[335959254,1724643052887,-500.0,0.00012713,2]
[335959255,1724643052897,-586.51,0.00012713,2]
[335959256,1724643052906,-752.17,0.00012713,2]
[335959257,1724643052917,-500.0,0.00012713,2]
[335959258,1724643052930,-530.70952098,0.00012713,2]
[335959259,1724643052942,-500.0,0.00012713,2]
[335959260,1724643052953,-702.93,0.00012713,2]
[335959261,1724643052966,-679.72,0.00012713,2]
[335959262,1724643052977,-828.87,0.00012713,2]
[335959263,1724643052988,-1146.09,0.00012713,2]
[335959264,1724643052999,-500.0,0.00012713,2]
[335959265,1724643053009,-500.0,0.00012713,2]
[335959266,1724643053022,-641.37,0.00012713,2]
[335959267,1724643053032,-500.0,0.00012713,2]
[335959268,1724643053044,-500.0,0.00012713,2]
[335959269,1724643053056,-568.59,0.00012713,2]
[335959270,1724643053066,-500.0,0.00012713,2]
[335959271,1724643053077,-544.7424059,0.00012713,2]
[335959272,1724643053088,-794.77,0.00012713,2]
[335959273,1724643053099,-1272.01,0.00012713,2]
[335959274,1724643053110,-500.0,0.00012713,2]
[335959275,1724643053119,-500.0,0.00012713,2]
[335959276,1724643053131,-500.0,0.00012713,2]
[335959277,1724643053142,-655.11,0.00012713,2]
[335959278,1724643053152,-618.5,0.00012713,2]
[335959279,1724643053163,-500.0,0.00012713,2]
[335959280,1724643053174,-889.44,0.00012713,2]
[335959281,1724643053185,-657.61,0.00012713,2]
[335959282,1724643053198,-772.14,0.00012713,2]
[335959283,1724643053209,-688.32,0.00012713,2]
[335959284,1724643053222,-500.0,0.00012713,2]
[335959285,1724643053233,-500.0,0.00012713,2]
[335959286,1724643053245,-500.0,0.00012713,2]
[335959287,1724643053257,-500.0,0.00012713,2]
[335959288,1724643053267,-500.0,0.00012713,2]
[335959289,1724643053279,-500.0,0.00012713,2]
[335959290,1724643053289,-1851.29332,0.00012713,2]
[335959291,1724643053298,-1851.29332,0.00012713,2]
[335959292,1724643053310,-1060.620156,0.00012713,2]
[335959293,1724643053326,-1060.620156,0.00012713,2]
[335959294,1724643053335,-1100.19421187,0.00012721,2]
[335959295,1724643053345,-156.13373191,0.00012782,2]
[335959296,1724643053356,-1059.92669404,0.0001285,2]
[335959297,1724643053367,-157.21069484,0.00012886,2]
[335959298,1724643053376,-465.12548873,0.00012896,2]
[335959299,1724643053385,-7018.31243865,0.00012898,2]
[335959300,1724643053396,-309.07267468,0.00012898,2]
[335959301,1724643053406,-882.92,0.00012917,2]
[335959302,1724643053415,-8144.62,0.00012917,2]
[335959303,1724643053424,-500.0,0.00012917,2]
[335959304,1724643053434,-500.0,0.00012917,2]
[335959305,1724643053444,-708.94,0.00012917,2]
[335959306,1724643053454,-935.73,0.00012917,2]
[335959307,1724643053464,-11329.8,0.00012917,2]
[335959308,1724643053473,-566.79,0.00012917,2]
[335959309,1724643053484,-620.38,0.00012917,2]
[335959310,1724643053493,-614.08,0.00012917,2]
[335959311,1724643053502,-500.0,0.00012917,2]
[335959312,1724643053512,-610.76,0.00012917,2]
[335959313,1724643053522,-715.19,0.00012917,2]
[335959314,1724643053532,-3084.28,0.00012917,2]
[335959315,1724643053541,-12568.85,0.00012918,2]
[335959316,1724643053551,-500.0,0.00012918,2]
[335959317,1724643053561,-3333.57,0.00012918,2]
[335959318,1724643053571,-585.87,0.00012918,2]
[335959319,1724643053581,-959.92,0.00012918,2]
[335959320,1724643053591,-4147.97,0.00012918,2]
[335959321,1724643053601,-500.0,0.00012918,2]
[335959322,1724643053611,-1458.87,0.00012918,2]
[335959323,1724643053621,-3113.83,0.00012918,2]
[335959324,1724643053630,-500.0,0.00012918,2]
[335959325,1724643053640,-500.0,0.00012918,2]
[335959326,1724643053651,-639.78,0.00012918,2]
[335959327,1724643053660,-33463.22,0.00012918,2]
[335959328,1724643053670,-716.31,0.00012918,2]
[335959329,1724643053680,-824.65,0.00012918,2]
[335959330,1724643053691,-505.67,0.00012918,2]
[335959331,1724643053702,-1864.62,0.00012918,2]
[335959332,1724643053713,-572.94,0.00012918,2]
[335959333,1724643053722,-806.09,0.00012918,2]
[335959334,1724643053732,-501.38,0.00012918,2]
[335959335,1724643053743,-1383.81,0.00012918,2]
[335959336,1724643053754,-500.0,0.00012918,2]
[335959337,1724643053765,-528.11,0.00012918,2]
[335959338,1724643053775,-500.0,0.00012918,2]
[335959339,1724643053787,-1521.34,0.00012918,2]
[335959340,1724643053798,-500.0,0.00012918,2]
[335959341,1724643053811,-500.0,0.00012918,2]
[335959342,1724643053821,-862.59,0.00012918,2]
[335959343,1724643053831,-2687.73,0.00012918,2]
[335959344,1724643053842,-500.0,0.00012918,2]
[335959345,1724643053852,-500.0,0.00012918,2]
[335959346,1724643053862,-971.72,0.00012918,2]
[335959347,1724643053872,-821.96,0.00012918,2]
[335959348,1724643053883,-686.1,0.00012918,2]
[335959349,1724643053895,-1225.05,0.00012918,2]
[335959350,1724643053905,-966.21,0.00012918,2]
[335959351,1724643053916,-500.0,0.00012918,2]
[335959352,1724643053926,-932.37,0.00012919,2]
[335959353,1724643053936,-500.0,0.00012919,2]
[335959354,1724643053947,-445.77517727,0.00012919,2]
[335959355,1724643054135,-670.27,0.00012919,2]
[335959356,1724643054145,-500.84,0.00012919,2]
[335959357,1724643054155,-500.0,0.00012919,2]
[335959358,1724643054165,-500.0,0.00012919,2]
[335959359,1724643054175,-500.0,0.00012919,2]
[335959360,1724643054185,-500.0,0.00012919,2]
[335959361,1724643054199,-964.89,0.00012919,2]
[335959362,1724643054209,-1045.08,0.00012919,2]
[335959363,1724643054218,-587.84,0.00012919,2]
[335959364,1724643054228,-500.0,0.00012919,2]
[335959365,1724643054238,-854.3,0.00012919,2]
[335959366,1724643054248,-741.68,0.00012919,2]
[335959367,1724643054257,-857.95,0.00012919,2]
[335959368,1724643054267,-978.77,0.00012919,2]
[335959369,1724643054277,-791.04,0.00012919,2]
[335959370,1724643054287,-501.31729394,0.00012919,2]
[335959371,1724643054296,-586.6,0.00012919,2]
[335959372,1724643054306,-1204.03,0.00012919,2]
[335959373,1724643054321,-653.55,0.00012919,2]
[335959374,1724643054330,-659.93,0.00012919,2]
[335959375,1724643054340,-500.0,0.00012919,2]
[335959376,1724643054350,-1131.85,0.00012919,2]
[335959377,1724643054361,-505.84,0.00012919,2]
[335959378,1724643054371,-588.29,0.00012919,2]
[335959379,1724643054380,-500.0,0.00012919,2]
[335959380,1724643054390,-500.0,0.00012919,2]
[335959381,1724643054402,-532.62,0.00012919,2]
[335959382,1724643054412,-500.0,0.00012919,2]
[335959383,1724643054423,-500.0,0.00012919,2]
[335959384,1724643054433,-1851.29332,0.00012919,2]
[335959385,1724643054442,-500.0,0.00012919,2]
[335959386,1724643054453,-1851.29332,0.00012919,2]
[335959387,1724643054462,-720.09,0.00012919,2]
[335959388,1724643054472,-1014.91,0.00012919,2]
[335959389,1724643054481,-500.0,0.00012919,2]
[335959390,1724643054491,-606.59,0.00012919,2]
[335959391,1724643054501,-942.62,0.00012919,2]
[335959392,1724643054510,-683.27,0.00012919,2]
[335959393,1724643054520,-500.0,0.00012919,2]
[335959394,1724643054530,-1060.620156,0.00012919,2]
[335959395,1724643054539,-1060.620156,0.00012919,2]
[335959396,1724643054549,-4144.64,0.00012919,2]
[335959397,1724643054559,-537.33,0.00012919,2]
[335959398,1724643054568,-870.93,0.00012919,2]
[335959399,1724643054578,-767.64,0.00012919,2]
[335959400,1724643054588,-802.98,0.00012919,2]
[335959401,1724643054598,-876.58,0.00012919,2]
[335959402,1724643054607,-607.57,0.00012919,2]
[335959403,1724643054617,-625.73,0.00012919,2]
[335959404,1724643054627,-500.0,0.00012919,2]
[335959405,1724643054636,-500.0,0.00012919,2]
[335959406,1724643054646,-873.32,0.00012919,2]
[335959407,1724643054656,-881.82,0.00012919,2]
[335959408,1724643054665,-767.4,0.00012919,2]
[335959409,1724643054675,-1265.33,0.00012919,2]
[335959410,1724643054684,-500.0,0.00012919,2]
[335959411,1724643054693,-500.0,0.00012919,2]
[335959412,1724643054703,-1042.11,0.00012919,2]
[335959413,1724643054712,-629.36,0.00012919,2]
[335959414,1724643054721,-500.0,0.00012919,2]
[335959415,1724643054731,-1279.92,0.00012919,2]
[335959416,1724643054740,-703.09,0.00012919,2]
[335959417,1724643054749,-500.0,0.00012919,2]
[335959418,1724643054758,-841.58,0.00012919,2]
[335959419,1724643054768,-2490.23,0.00012919,2]
[335959420,1724643054778,-515.88,0.00012919,2]
[335959421,1724643054787,-5828.93,0.00012919,2]
[335959422,1724643054796,-713.76,0.00012919,2]
[335959423,1724643054805,-11005.18,0.00012919,2]
[335959424,1724643054815,-649.61,0.00012919,2]
[335959425,1724643054825,-781.68,0.00012919,2]
[335959426,1724643054834,-500.0,0.00012919,2]
[335959427,1724643054843,-752.28,0.00012919,2]
[335959428,1724643054852,-500.0,0.00012919,2]
[335959429,1724643054862,-535.88,0.00012919,2]
[335959430,1724643054871,-514.78,0.00012919,2]
[335959431,1724643054881,-500.0,0.00012919,2]
[335959432,1724643054891,-500.0,0.00012919,2]
[335959433,1724643054901,-1182.14,0.00012919,2]
[335959434,1724643054910,-621.15,0.00012919,2]
[335959435,1724643054920,-608.41,0.00012919,2]
[335959436,1724643054929,-500.0,0.00012919,2]
[335959437,1724643054939,-864.4,0.00012919,2]
[335959438,1724643054948,-268.58684156,0.00012919,2]
[335959439,1724643054958,-500.0,0.00012919,2]
[335959440,1724643054968,-1000.0,0.00012921,2]
[335959441,1724643054977,-500.0,0.00012929,2]
[335959442,1724643054987,-576.55,0.00012929,2]
[335959443,1724643054996,-652.25,0.00012929,2]
[335959444,1724643055006,-500.0,0.00012929,2]
[335959445,1724643055017,-500.0,0.00012929,2]
[335959446,1724643055029,-500.0,0.00012929,2]
[335959447,1724643055040,-500.0,0.00012929,2]
[335959448,1724643055049,-500.0,0.00012929,2]
[335959449,1724643055059,-522.75,0.00012929,2]
[335959450,1724643055069,-500.0,0.00012929,2]
[335959451,1724643055079,-500.0,0.00012929,2]
[335959452,1724643055090,-566.77,0.00012929,2]
[335959453,1724643055100,-497.52125363,0.00012929,2]
[335959454,1724643055111,-500.0,0.00012929,2]
[335959455,1724643055123,-500.0,0.00012929,2]
[335959456,1724643055136,-500.0,0.00012929,2]
[335959457,1724643055146,-500.0,0.00012929,2]
[335959458,1724643055158,-500.0,0.00012929,2]
[335959459,1724643055169,-500.0,0.00012929,2]
[335959460,1724643055179,-500.0,0.00012929,2]
[335959461,1724643055189,-500.0,0.00012929,2]
[335959462,1724643055199,-500.0,0.00012929,2]
[335959463,1724643055208,-660.44,0.00012929,2]
[335959464,1724643055218,-617.38,0.00012929,2]
[335959465,1724643055227,-637.71,0.00012929,2]
[335959466,1724643055237,-500.0,0.00012929,2]
[335959467,1724643055246,-500.0,0.00012929,2]
[335959468,1724643055257,-500.0,0.00012929,2]
[335959469,1724643055267,-393.72504825,0.00012929,2]
[335959470,1724643055277,-500.0,0.00012929,2]
[335959471,1724643055286,-916.13,0.00012929,2]
[335959472,1724643055296,-500.0,0.00012929,2]
[335959473,1724643055307,-500.0,0.00012929,2]
[335959474,1724643055321,-500.0,0.00012929,2]
[335959475,1724643055330,-500.0,0.00012929,2]
[335959476,1724643055340,-500.0,0.00012929,2]
[335959477,1724643055350,-500.0,0.00012929,2]
[335959478,1724643055362,-500.0,0.00012929,2]
[335959479,1724643055372,-500.0,0.00012929,2]
[335959480,1724643055382,-500.0,0.00012929,2]
[335959481,1724643055393,-500.0,0.00012929,2]
[335959482,1724643055403,-500.0,0.00012929,2]
[335959483,1724643055414,-500.0,0.00012929,2]
[335959484,1724643055424,-500.0,0.00012929,2]
[335959485,1724643055433,-500.0,0.00012929,2]
[335959486,1724643055443,-500.0,0.00012929,2]
[335959487,1724643055453,-500.0,0.00012929,2]
[335959488,1724643055463,-500.0,0.00012929,2]
[335959489,1724643055473,-530.52,0.00012929,2]
[335959490,1724643055484,-500.0,0.00012929,2]
[335959491,1724643055495,-500.0,0.00012929,2]
[335959492,1724643055508,-500.0,0.00012929,2]
[335959493,1724643055518,-500.0,0.00012929,2]
[335959494,1724643055529,-500.0,0.00012929,2]
[335959495,1724643055540,-500.0,0.00012929,2]
[335959496,1724643055551,-500.0,0.00012929,2]
[335959497,1724643055561,-1147.37,0.00012929,2]
[335959498,1724643055572,-500.0,0.00012929,2]
[335959499,1724643055581,-297.76240184,0.00012929,2]
[335959500,1724643055591,-500.0,0.00012929,2]
[335959501,1724643055601,-500.0,0.00012929,2]
[335959502,1724643055611,-1136.37,0.00012929,2]
[335959503,1724643055621,-500.0,0.00012929,2]
[335959504,1724643055631,-500.0,0.00012929,2]
[335959505,1724643055641,-500.0,0.00012929,2]
[335959506,1724643055651,-707.91,0.00012929,2]
[335959507,1724643055661,-500.0,0.00012929,2]
[335959508,1724643055672,-1365.36,0.00012929,2]
[335959509,1724643055682,-500.0,0.00012929,2]
[335959510,1724643055693,-500.0,0.00012929,2]
[335959511,1724643055704,-500.0,0.00012929,2]
[335959512,1724643055715,-587.31,0.00012929,2]
[335959513,1724643055725,-1111.92,0.00012929,2]
[335959514,1724643055735,-500.0,0.00012929,2]
[335959515,1724643055747,-500.0,0.00012929,2]
[335959516,1724643055756,-500.0,0.00012929,2]
[335959517,1724643055767,-1267.99,0.00012929,2]
[335959518,1724643055777,-687.18,0.00012929,2]
[335959519,1724643055789,-500.0,0.00012929,2]
[335959520,1724643055798,-500.0,0.00012929,2]
[335959521,1724643055810,-608.89,0.00012929,2]
[335959522,1724643055823,-712.0,0.00012929,2]
[335959523,1724643055834,-500.0,0.00012929,2]
[335959524,1724643055845,-550.33,0.00012929,2]
[335959525,1724643055855,-591.91,0.00012929,2]
[335959526,1724643055865,-501.55,0.00012929,2]
[335959527,1724643055877,-500.0,0.00012929,2]
[335959528,1724643055886,-500.0,0.00012929,2]
[335959529,1724643055898,-500.0,0.00012929,2]
[335959530,1724643055909,-503.83,0.00012929,2]
[335959531,1724643055921,-500.0,0.00012929,2]
[335959532,1724643055931,-500.0,0.00012929,2]
[335959533,1724643055941,-638.65,0.00012929,2]
[335959534,1724643055951,-620.4,0.00012929,2]
[335959535,1724643055961,-500.0,0.00012929,2]
[335959536,1724643055970,-500.0,0.00012929,2]
[335959537,1724643055980,-500.0,0.00012929,2]
[335959538,1724643055989,-500.0,0.00012929,2]
[335959539,1724643055999,-500.0,0.00012929,2]
[335959540,1724643056008,-521.38,0.00012929,2]
[335959541,1724643056018,-546.67,0.00012929,2]
[335959542,1724643056027,-500.0,0.00012929,2]
[335959543,1724643056038,-500.0,0.00012929,2]
[335959544,1724643056048,-500.0,0.00012929,2]
[335959545,1724643056058,-500.0,0.00012929,2]
[335959546,1724643056068,-500.0,0.00012929,2]
[335959547,1724643056077,-544.56,0.00012929,2]
[335959548,1724643056087,-500.0,0.00012929,2]
[335959549,1724643056099,-500.0,0.00012929,2]
[335959550,1724643056110,-500.0,0.00012929,2]
[335959551,1724643056120,-500.0,0.00012929,2]
[335959552,1724643056132,-500.0,0.00012929,2]
[335959553,1724643056143,-500.0,0.00012929,2]
[335959554,1724643056153,-751.39,0.00012929,2]
[335959555,1724643056163,-500.0,0.00012929,2]
[335959556,1724643056174,-500.0,0.00012929,2]
[335959557,1724643056183,-509.44,0.00012929,2]
[335959558,1724643056192,-500.0,0.00012929,2]
[335959559,1724643056202,-500.0,0.00012929,2]
[335959560,1724643056211,-658.78,0.00012929,2]
[335959561,1724643056223,-500.0,0.00012929,2]
[335959562,1724643056234,-500.0,0.00012929,2]
[335959563,1724643056245,-500.0,0.00012929,2]
[335959564,1724643056256,-500.0,0.00012929,2]
[335959565,1724643056266,-528.42,0.00012929,2]
[335959566,1724643056276,-891.36,0.0001293,2]
[335959567,1724643056286,-648.56,0.0001293,2]
[335959568,1724643056297,-1098.49,0.0001293,2]
[335959569,1724643056309,-535.41,0.0001293,2]
[335959570,1724643056323,-779.3,0.0001293,2]
[335959571,1724643056334,-500.0,0.0001293,2]
[335959572,1724643056347,-500.0,0.0001293,2]
[335959573,1724643056359,-742.66,0.0001293,2]
[335959574,1724643056369,-500.0,0.0001293,2]
[335959575,1724643056378,-669.56,0.0001293,2]
[335959576,1724643056387,-500.0,0.0001293,2]
[335959577,1724643056400,-500.0,0.0001293,2]
[335959578,1724643056410,-720.35,0.0001293,2]
[335959579,1724643056421,-500.0,0.0001293,2]
[335959580,1724643056431,-536.45,0.0001293,2]
[335959581,1724643056441,-500.0,0.0001293,2]
[335959582,1724643056452,-500.0,0.0001293,2]
[335959583,1724643056464,-869.53,0.0001293,2]
[335959584,1724643056474,-500.0,0.0001293,2]
[335959585,1724643056485,-1146.52,0.0001293,2]
[335959586,1724643056496,-658.97,0.0001293,2]
[335959587,1724643056507,-500.0,0.0001293,2]
[335959588,1724643056519,-538.19,0.0001293,2]
[335959589,1724643056528,-1086.13,0.0001293,2]
[335959590,1724643056538,-500.0,0.0001293,2]
[335959591,1724643056548,-1073.17,0.0001293,2]
[335959592,1724643056557,-500.0,0.0001293,2]
[335959593,1724643056568,-500.0,0.0001293,2]
[335959594,1724643056578,-950.45,0.0001293,2]
[335959595,1724643056587,-705.23,0.0001293,2]
[335959596,1724643056597,-526.97,0.0001293,2]
[335959597,1724643056607,-500.0,0.0001293,2]
[335959598,1724643056617,-1043.49,0.0001293,2]
[335959599,1724643056628,-523.57090291,0.0001293,2]
[335959600,1724643056638,-552.7,0.0001293,2]
[335959601,1724643056695,-1078.34,0.0001293,2]
[335959602,1724643056704,-844.21,0.0001293,2]
[335959603,1724643056714,-897.75,0.0001293,2]
[335959604,1724643056723,-500.0,0.0001293,2]
[335959605,1724643056735,-568.07,0.0001293,2]
[335959606,1724643056745,-500.0,0.0001293,2]
[335959607,1724643056756,-500.0,0.0001293,2]
[335959608,1724643056765,-500.0,0.0001293,2]
[335959609,1724643056775,-845.0,0.0001293,2]
[335959610,1724643056784,-1253.91,0.0001293,2]
[335959611,1724643056794,-642.79,0.0001293,2]
[335959612,1724643056804,-1093.67,0.0001293,2]
[335959613,1724643056813,-856.53,0.0001293,2]
[335959614,1724643056829,-1079.05,0.0001293,2]
[335959615,1724643056838,-527.03,0.0001293,2]
[335959616,1724643056848,-817.6,0.0001293,2]
[335959617,1724643056858,-729.71,0.0001293,2]
[335959618,1724643056869,-561.47,0.0001293,2]
[335959619,1724643056878,-571.31,0.0001293,2]
[335959620,1724643056887,-681.91,0.0001293,2]
[335959621,1724643056897,-837.31,0.0001293,2]
[335959622,1724643056907,-1082.59,0.0001293,2]
[335959623,1724643056916,-529.28,0.0001293,2]
[335959624,1724643056926,-500.0,0.00012933,2]
[335959625,1724643056935,-500.0,0.00012933,2]
[335959626,1724643056944,-500.0,0.00012933,2]
[335959627,1724643056953,-500.0,0.00012933,2]
[335959628,1724643056963,-500.0,0.00012933,2]
[335959629,1724643056972,-500.0,0.00012933,2]
[335959630,1724643056982,-500.0,0.00012933,2]
[335959631,1724643056991,-500.0,0.00012933,2]
[335959632,1724643057003,-500.0,0.00012933,2]
[335959633,1724643057013,-500.0,0.00012933,2]
[335959634,1724643057025,-500.0,0.00012933,2]
[335959635,1724643057036,-500.0,0.00012933,2]
[335959636,1724643057049,-500.0,0.00012933,2]
[335959637,1724643057059,-500.0,0.00012933,2]
[335959638,1724643057070,-500.0,0.00012933,2]
[335959639,1724643057079,-326.22,0.00012933,2]
[335959640,1724643057088,-500.0,0.00012933,2]
[335959641,1724643057097,-500.0,0.00012933,2]
[335959642,1724643057106,-500.0,0.00012933,2]
[335959643,1724643057115,-500.0,0.00012933,2]
[335959644,1724643057124,-500.0,0.00012933,2]
[335959645,1724643057134,-500.0,0.00012933,2]
[335959646,1724643057146,-500.0,0.00012933,2]
[335959647,1724643057157,-500.0,0.00012933,2]
[335959648,1724643057167,-500.0,0.00012933,2]
[335959649,1724643057177,-470.29,0.00012933,2]
[335959650,1724643057188,-1060.620156,0.00012933,2]
[335959651,1724643057197,-1060.620156,0.00012933,2]
[335959652,1724643057206,-5721.62172679,0.0001297,2]
[335959653,1724643057215,-493.69395889,0.00012971,2]
[335959654,1724643057224,-1851.29332,0.00012973,2]
[335959655,1724643057234,-1851.29332,0.00012973,2]
[335959656,1724643057243,-500.0,0.00012987,2]
[335959657,1724643057252,-543.13,0.00012987,2]
[335959658,1724643057261,-642.75,0.00012987,2]
[335959659,1724643057271,-500.0,0.00012987,2]
[335959660,1724643057280,-500.0,0.00012987,2]
[335959661,1724643057289,-500.0,0.00012987,2]
[335959662,1724643057299,-565.98,0.00012987,2]
[335959663,1724643057308,-500.0,0.00012987,2]
[335959664,1724643057322,-586.51,0.00012987,2]
[335959665,1724643057331,-752.17,0.00012987,2]
[335959666,1724643057340,-500.0,0.00012987,2]
[335959667,1724643057349,-500.0,0.00012987,2]